bitfinex/quotes_ETHUSD_20260304
["timestamp","ask_amount","ask_price","bid_price","bid_amount"]
[1772635407842,1.2027326,2078.6,2077.0,6.20364579]
[1772635408358,1.20255904,2078.9,2077.2,1.20354323]
[1772635408515,1.20255904,2078.9,2077.4,4.78360378]
[1772635408715,1.2023277,2079.3,2077.4,4.78360378]
[1772635408913,11.48949864,2080.1,2077.3,1.482]
[1772635408914,1.20192307,2080.0,2077.8,4.78360378]
[1772635409343,4.66353165,2079.9,2077.8,4.78360378]
[1772635409547,4.59799565,2079.9,2077.8,4.78360378]
[1772635409753,1.20192307,2080.0,2077.8,4.78360378]
[1772635410137,1.20192307,2080.0,2077.9,4.78360378]
[1772635410445,1.20192307,2080.0,2078.3,4.78360378]
[1772635411072,0.002,2080.4,2078.4,0.065536]
[1772635411244,1.20373357,2080.4,2078.5,4.78360378]
[1772635411415,1.20373357,2080.4,2078.6,4.78360378]
[1772635412427,1.20373357,2080.4,2078.3,0.065536]
[1772635412428,1.20192307,2080.0,2078.3,1.20290622]
[1772635413116,1.20192307,2080.0,2078.4,4.78360378]
[1772635414439,4.80896809,2080.4,2078.6,4.78360378]
[1772635415484,2.08371335,2080.1,2078.5,1.20279047]
[1772635416179,9.40696374,2080.4,2078.6,4.78360378]
[1772635416375,4.80896809,2080.4,2078.7,5.98627852]
[1772635416682,1.20369198,2080.4,2078.8,4.78360378]
[1772635417342,0.002,2080.2,2078.8,4.78360378]
[1772635417547,0.002,2080.2,2078.9,4.78360378]
[1772635417959,0.002,2080.2,2078.7,1.20267474]
[1772635418376,0.002,2080.2,2078.7,5.98627852]
[1772635418674,0.002,2080.2,2078.8,4.78360378]
[1772635419679,0.002,2080.2,2078.9,4.78360378]
[1772635420754,0.002,2080.2,2079.0,1.2025012]
[1772635421346,0.002,2080.2,2078.5,1.20279047]
[1772635421706,2.08371335,2079.6,2078.2,1.2029641]
[1772635422156,4.59799565,2079.9,2078.2,1.2029641]
[1772635422390,4.59799565,2079.9,2078.2,5.98656788]
[1772635422873,1.20203865,2079.8,2078.2,5.98656788]
[1772635423274,5.8000343,2079.8,2078.2,1.2029641]
[1772635423476,5.8000343,2079.8,2077.7,8.14835921]
[1772635423477,4.59799565,2079.1,2077.6,1.20329704]
[1772635423676,2.08371335,2078.8,2077.4,1.20339326]
[1772635424290,4.59799565,2078.7,2077.3,2.68544146]
[1772635424487,2.08371335,2078.4,2077.2,1.20452201]
[1772635424675,2.08371335,2079.0,2077.3,4.78360378]
[1772635424897,1.20255904,2078.9,2077.4,1.20342736]
[1772635425074,2.08371335,2078.6,2077.2,1.20449728]
[1772635425477,4.59799565,2078.8,2077.2,1.20449728]
[1772635425705,0.065536,2078.7,2077.2,1.20452931]
[1772635426687,4.66353165,2078.7,2077.2,1.20452931]
[1772635426890,4.59799565,2078.3,2077.2,0.001]
[1772635427100,2.08371335,2078.0,2077.2,0.001]
[1772635427301,4.66353165,2077.9,2077.0,5.001]
[1772635427784,2.08371335,2077.6,2077.0,5.001]
[1772635428083,2.08371335,2077.6,2076.3,1.20505514]
[1772635428084,6.681709,2077.6,2076.3,1.20505514]
[1772635428312,6.681709,2077.6,2076.3,1.20505825]
[1772635428478,4.59799565,2077.6,2076.3,1.20505825]
[1772635428884,4.59799565,2077.6,2076.3,0.001]
[1772635428885,3.28719864,2077.3,2076.3,0.001]
[1772635429122,1.20348529,2077.3,2076.3,0.001]
[1772635429797,6.78292203,2077.9,2076.3,0.001]
[1772635430038,6.78292203,2077.9,2076.3,4.5302878]
[1772635430039,4.81280854,2077.8,2076.3,4.5302878]
[1772635430347,2.08371335,2078.3,2076.3,4.5302878]
[1772635430348,4.69920868,2078.9,2076.7,4.5292878]
[1772635430535,4.69920868,2078.9,2076.8,4.5292878]
[1772635431150,4.76474468,2078.7,2076.9,1.20371707]
[1772635432525,4.76474468,2078.7,2076.9,5.73300487]
[1772635433152,1.2027326,2078.6,2076.9,5.73300487]
[1772635433351,4.69920868,2078.5,2076.9,1.20371707]
[1772635433647,1.2027326,2078.6,2076.6,4.81536538]
[1772635433648,0.002,2077.6,2076.6,4.81536538]
[1772635434147,0.002,2077.6,2076.5,1.20489097]
[1772635434148,0.002,2077.6,2076.5,1.204945]
[1772635434330,0.002,2077.6,2076.5,0.001]
[1772635434526,0.067536,2077.6,2076.5,0.001]
[1772635434932,4.76674468,2077.6,2076.5,0.001]
[1772635435130,4.76674468,2077.6,2076.3,0.001]
[1772635435131,4.69920868,2077.4,2076.3,0.001]
[1772635435331,0.065536,2077.3,2076.3,0.001]
[1772635435537,4.76474468,2077.3,2076.3,0.001]
[1772635436456,1.20336943,2077.5,2076.3,0.001]
[1772635437169,4.76474468,2077.4,2076.3,0.001]
[1772635437478,0.002,2077.6,2076.3,0.001]
[1772635437974,6.78492203,2077.6,2076.3,0.001]
[1772635438366,4.70120868,2077.6,2076.3,0.001]
[1772635438674,6.78492203,2077.6,2076.3,0.001]
[1772635438981,4.76474468,2077.4,2076.3,0.001]
[1772635439143,1.20348529,2077.3,2076.3,0.001]
[1772635439348,4.69920868,2077.2,2076.3,0.001]
[1772635439558,4.69920868,2077.2,2075.3,4.8185758]
[1772635439559,0.065536,2075.7,2074.8,0.6475803]
[1772635439881,0.21502099,2075.7,2074.8,0.6475803]
[1772635440094,0.065536,2075.7,2074.8,0.6475803]
[1772635440385,0.2513,2075.8,2074.8,1.85251107]
[1772635440576,0.2513,2075.8,2074.8,0.6475803]
[1772635440778,0.2513,2075.8,2074.8,1.85250909]
[1772635440953,0.2513,2075.8,2074.8,6.38179689]
[1772635441276,0.2513,2075.8,2074.9,4.5292878]
[1772635441458,1.20394895,2076.5,2074.9,4.5292878]
[1772635441652,3.30820465,2076.6,2074.9,4.5292878]
[1772635441975,4.69920868,2077.4,2074.9,4.5292878]
[1772635441976,1.20342736,2077.4,2075.3,4.5292878]
[1772635442144,1.20340463,2077.5,2075.7,4.5292878]
[1772635442349,1.20532091,2077.6,2076.3,4.5292878]
[1772635442555,1.20531654,2077.6,2076.3,4.5292878]
[1772635442883,1.20531654,2077.6,2075.7,4.5292878]
[1772635443397,0.067536,2077.6,2075.8,1.20435494]
[1772635443554,0.14948499,2077.5,2075.8,1.20435494]
[1772635443757,4.84869367,2077.0,2075.2,4.5292878]
[1772635444077,4.84869367,2077.0,2075.0,1.20478085]
[1772635444078,0.14948499,2076.6,2075.0,1.20478085]
[1772635444254,4.69920868,2076.5,2074.9,1.20483353]
[1772635444459,2.23319834,2076.6,2074.8,1.85251523]
[1772635444460,4.91422967,2076.4,2074.8,1.85251523]
[1772635445095,4.91422967,2076.1,2074.8,0.6475803]
[1772635445257,0.065536,2075.9,2074.8,1.8524985]
[1772635445460,0.065536,2075.9,2074.8,0.6475803]
[1772635445867,4.84869367,2075.6,2074.8,0.6475803]
[1772635446068,0.14948499,2075.4,2073.8,1.20547551]
[1772635446294,0.14948499,2075.4,2073.6,4.5292878]
[1772635446295,0.065536,2075.3,2073.6,4.5292878]
[1772635446458,4.84869367,2075.2,2073.1,4.5292878]
[1772635446661,2.14924935,2075.3,2073.1,4.5292878]
[1772635446662,0.065536,2074.8,2073.2,4.82345824]
[1772635446987,4.91422967,2075.3,2073.3,4.5292878]
[1772635447199,4.69920868,2075.3,2073.3,4.5292878]
[1772635447359,4.69920868,2075.3,2072.9,1.36800349]
[1772635447360,4.69920868,2074.9,2072.9,1.36800349]
[1772635447570,0.21502099,2074.5,2072.9,0.1619966]
[1772635447772,0.14948499,2074.3,2072.9,1.36803591]
[1772635448311,0.065536,2074.2,2072.9,1.36803591]
[1772635448512,4.84869367,2074.3,2072.9,1.36803313]
[1772635448799,4.84869367,2074.3,2072.9,0.1619966]
[1772635449004,4.84869367,2074.3,2072.5,5.06235005]
[1772635449005,2.08371335,2073.2,2072.5,3.57835005]
[1772635449226,2.08371335,2073.2,2071.6,4.82716085]
[1772635449227,4.69920868,2073.2,2071.6,4.82716085]
[1772635449523,0.065536,2073.6,2071.8,1.20668018]
[1772635449524,1.20569086,2073.5,2071.8,1.20668018]
[1772635450069,0.065536,2073.0,2071.1,4.5292878]
[1772635450301,4.69920868,2073.1,2071.1,4.5292878]
[1772635450475,0.065536,2073.4,2071.1,4.5292878]
[1772635450681,0.065536,2073.4,2070.6,4.8295102]
[1772635450682,0.065536,2073.1,2070.6,4.8295102]
[1772635450882,3.64459772,2073.3,2070.7,4.5292878]
[1772635451066,0.14948499,2072.8,2070.7,4.5292878]
[1772635451270,0.065536,2072.7,2070.7,4.5292878]
[1772635451500,0.065536,2072.7,2070.9,4.5292878]
[1772635451501,1.20619866,2072.7,2070.9,4.5292878]
[1772635452526,2.08371335,2072.5,2070.9,4.5292878]
[1772635452835,1.20619866,2072.7,2070.4,1.20749613]
[1772635452836,0.065536,2072.0,2070.4,1.20749613]
[1772635453024,4.69920868,2072.1,2070.4,1.20749613]
[1772635453404,1.2065637,2072.0,2070.3,2.72762594]
[1772635453606,0.065536,2071.9,2070.1,1.20767112]
[1772635453801,1.2065637,2072.0,2070.3,4.5292878]
[1772635454421,1.2065637,2072.0,2070.2,2.72762594]
[1772635454626,1.2065637,2072.0,2070.2,7.25691374]
[1772635454823,1.2065637,2072.0,2070.2,2.72762594]
[1772635455027,1.2065637,2072.0,2070.3,4.5292878]
[1772635455433,6.90996817,2072.1,2069.0,4.5292878]
[1772635455434,4.76474468,2071.7,2069.0,4.5292878]
[1772635455634,1.20668018,2071.8,2069.3,4.83252737]
[1772635455635,2.08371335,2071.0,2069.3,4.83252737]
[1772635455834,2.52771959,2071.6,2069.8,1.79372586]
[1772635455835,0.065536,2071.2,2069.8,1.79372586]
[1772635456043,2.52771959,2071.6,2069.8,1.79372586]
[1772635456235,0.065536,2071.5,2069.8,6.32301366]
[1772635457062,4.76474468,2071.5,2069.8,1.79372206]
[1772635457263,4.76474468,2071.5,2069.8,1.79372652]
[1772635457415,0.065536,2071.2,2069.8,0.58588137]
[1772635457619,1.20691319,2071.4,2069.8,1.79371592]
[1772635457819,4.82673771,2071.8,2069.9,4.5292878]
[1772635458315,0.065536,2071.6,2069.9,4.5292878]
[1772635458515,0.062536,2071.6,2069.9,4.5292878]
[1772635458713,0.062536,2071.6,2069.8,1.79371592]
[1772635458714,4.88659954,2071.6,2069.8,1.79371592]
[1772635459317,4.88659954,2071.6,2069.8,0.58588137]
[1772635459318,2.08371335,2071.3,2069.8,0.58588137]
[1772635459515,1.20691319,2071.4,2069.8,1.7937147]
[1772635459745,1.20691319,2071.4,2069.9,4.8369634]
[1772635460327,2.54820217,2071.9,2069.9,4.8369634]
[1772635460543,1.20668018,2071.8,2069.9,4.8369634]
[1772635460743,4.92640793,2072.0,2069.9,4.8369634]
[1772635460927,1.30660522,2072.0,2069.9,4.8369634]
[1772635461556,4.82406354,2071.6,2069.9,1.20774574]
[1772635461963,5.32406354,2071.4,2069.8,1.79368325]
[1772635462169,0.065536,2071.2,2069.8,1.79371887]
[1772635462457,0.065536,2071.2,2069.8,0.58588137]
[1772635462825,4.88959954,2071.2,2069.8,0.58588137]
[1772635463030,2.08371335,2070.9,2069.8,0.58588137]
[1772635463264,6.90777689,2070.9,2069.8,0.58588137]
[1772635463432,1.20726289,2070.8,2069.8,0.58588137]
[1772635463634,1.20726289,2070.8,2069.8,1.79371679]
[1772635463946,1.20708802,2071.2,2069.9,4.66530317]
[1772635464163,1.20708802,2071.2,2070.1,0.0011]
[1772635465336,1.20708802,2071.2,2069.7,4.83138467]
[1772635465337,2.08371335,2070.2,2068.8,4.99551899]
[1772635465526,2.08371335,2070.2,2068.8,0.1619966]
[1772635465527,1.20772946,2070.0,2068.8,0.1619966]
[1772635465772,1.20772946,2070.0,2068.8,1.37041926]
[1772635465931,1.20772946,2070.0,2068.8,0.1619966]
[1772635466131,4.63997327,2069.9,2068.8,0.1619966]
[1772635466370,4.63997327,2069.9,2068.8,1.37037158]
[1772635466527,4.63997327,2069.9,2068.8,0.1619966]
[1772635467059,4.63997327,2069.9,2068.8,1.37042589]
[1772635467265,1.20772946,2070.0,2068.8,1.37042589]
[1772635467664,4.83091787,2070.3,2068.8,1.37042589]
[1772635467852,4.83091787,2070.3,2068.8,1.37042099]
[1772635468054,0.065536,2070.2,2068.8,0.1619966]
[1772635468268,0.065536,2070.2,2068.8,1.37041807]
[1772635468584,4.83091787,2070.3,2068.8,1.37041807]
[1772635468769,1.44918386,2070.7,2068.8,1.37041807]
[1772635468770,4.82928478,2070.9,2068.9,4.66530317]
[1772635469090,1.4484508,2071.3,2068.9,4.66530317]
[1772635469091,1.20697146,2071.3,2068.9,4.66530317]
[1772635469245,4.63997327,2071.2,2068.9,4.66530317]
[1772635469553,1.20708802,2071.1,2069.0,5.87361636]
[1772635469754,0.065536,2071.0,2069.0,5.87361636]
[1772635469952,0.065536,2071.0,2069.1,4.66530317]
[1772635470276,1.20708802,2071.1,2069.1,4.66530317]
[1772635471347,0.065536,2071.0,2069.1,4.66530317]
[1772635471673,1.20708802,2071.1,2069.2,1.2081964]
[1772635471870,1.20708802,2071.1,2069.2,5.87349957]
[1772635472180,4.63997327,2071.0,2069.2,1.2081964]
[1772635472378,4.70550927,2070.9,2069.2,1.2081964]
[1772635472689,4.63997327,2070.0,2068.8,1.37041657]
[1772635472982,4.63997327,2070.0,2068.8,0.1619966]
[1772635473185,1.681,2070.8,2068.8,1.37038315]
[1772635473186,4.63997327,2070.4,2068.8,1.37038315]
[1772635473780,1.20755446,2070.3,2068.8,0.1619966]
[1772635473958,4.70550927,2070.2,2068.8,1.37041719]
[1772635474158,4.70550927,2070.2,2068.8,0.1619966]
[1772635474159,0.065536,2070.0,2068.8,0.1619966]
[1772635474360,0.065536,2069.6,2068.1,1.20883903]
[1772635474572,4.70550927,2069.6,2068.1,1.20883903]
[1772635475184,4.70550927,2069.6,2068.0,1.77889261]
[1772635475884,4.70550927,2069.4,2068.0,0.57]
[1772635476086,1.20802126,2069.5,2068.1,4.66530317]
[1772635476585,4.83018699,2070.4,2068.3,4.66530317]
[1772635476786,1.20755446,2070.3,2068.3,4.66530317]
[1772635476955,4.63997327,2070.2,2068.0,1.77889681]
[1772635477154,0.065536,2069.7,2068.0,1.77888597]
[1772635477396,0.065536,2069.6,2068.0,1.77888597]
[1772635477565,0.14948499,2069.5,2068.0,0.51]
[1772635477886,0.14948499,2069.0,2068.0,0.51]
[1772635478183,0.14948499,2069.0,2067.9,0.19125616]
[1772635478184,0.14948499,2069.0,2067.9,1e-08]
[1772635478774,0.21502099,2068.7,2067.9,1e-08]
[1772635479180,0.21502099,2068.7,2066.5,1.20977498]
[1772635479181,0.14948499,2068.2,2066.5,1.20977498]
[1772635479355,0.065536,2068.3,2066.5,1.20977498]
[1772635479558,2.94345436,2069.1,2066.5,5.87507815]
[1772635479786,0.21502099,2068.8,2066.5,5.87507815]
[1772635479985,0.065536,2068.8,2066.6,4.66530317]
[1772635480392,0.21502099,2068.7,2066.6,4.66530317]
[1772635480594,0.14948499,2068.7,2066.1,1.21000919]
[1772635480889,0.21502099,2068.8,2068.0,0.0011]
[1772635481085,0.21502099,2068.8,2067.7,0.0011]
[1772635481086,0.21502099,2068.4,2067.7,0.0011]
[1772635481286,0.065536,2068.4,2066.2,4.66530317]
[1772635481665,1.20872213,2068.3,2066.4,4.66530317]
[1772635481867,0.065536,2068.9,2066.4,4.66530317]
[1772635482107,0.065536,2068.9,2066.6,4.66530317]
[1772635482607,1.20831319,2069.0,2066.6,4.66530317]
[1772635483892,4.83325277,2069.1,2066.8,4.66530317]
[1772635486190,0.065536,2069.0,2066.8,4.66530317]
[1772635486416,1.20837159,2068.9,2066.9,5.87484402]
[1772635487481,4.70550927,2068.7,2066.9,1.20954085]
[1772635487682,1.20837159,2068.9,2067.0,4.66530317]
[1772635488301,1.20837159,2068.9,2066.5,10.95233629]
[1772635488302,4.7274667,2068.8,2066.5,10.95233629]
[1772635488520,4.7930027,2068.7,2066.6,5.8654211]
[1772635488876,4.7930027,2068.2,2066.2,4.65570466]
[1772635489295,4.7274667,2068.2,2066.2,4.65570466]
[1772635489499,0.065536,2068.5,2066.2,4.65570466]
[1772635489707,4.7274667,2068.7,2066.2,4.65570466]
[1772635490006,0.065536,2068.6,2066.2,4.65570466]
[1772635490177,4.7274667,2068.7,2066.2,4.65570466]
[1772635490503,1.20854684,2068.6,2066.4,4.65570466]
[1772635491484,4.7930027,2068.5,2066.4,4.65570466]
[1772635491690,4.7274667,2068.2,2066.4,4.65570466]
[1772635492627,0.065536,2068.0,2066.5,1.20977498]
[1772635493705,4.7930027,2068.0,2066.1,4.65570466]
[1772635494107,4.7930027,2068.0,2066.4,0.0011]
[1772635495025,1.20895594,2067.9,2066.8,0.003]
[1772635496696,5.93642264,2067.9,2066.8,0.003]
[1772635497092,4.7274667,2067.6,2066.8,0.003]
[1772635497818,1.20907288,2067.7,2066.8,0.003]
[1772635497986,4.83478905,2068.4,2066.8,0.003]
[1772635497987,4.83488855,2068.5,2066.8,4.65870466]
[1772635498383,1.20854684,2068.6,2066.8,4.65870466]
[1772635499018,4.7274667,2068.4,2066.8,0.003]
[1772635499214,5.93618883,2068.3,2066.8,0.003]
[1772635499912,4.7930027,2068.0,2066.8,0.003]
[1772635500289,0.065536,2067.7,2066.4,0.0011]
[1772635500490,0.065536,2067.7,2065.7,9.49662365]
[1772635500491,4.7930027,2067.0,2065.1,4.84214603]
[1772635500726,4.7274667,2067.5,2065.2,4.65570466]
[1772635500932,1.675,2067.9,2065.2,4.65570466]
[1772635500933,4.7274667,2067.1,2065.2,4.65570466]
[1772635501111,3.43901647,2067.6,2065.4,4.65570466]
[1772635501112,1.27472584,2067.5,2065.4,4.65570466]
[1772635501310,1.20918984,2067.5,2065.4,4.65570466]
[1772635501512,5.93665654,2067.5,2065.4,4.65570466]
[1772635501713,1.20918984,2067.5,2065.6,4.65570466]
[1772635501918,1.51972384,2067.7,2065.6,4.65570466]
[1772635502093,2.72881143,2067.7,2065.9,4.65570466]
[1772635502427,1.51972384,2067.7,2066.2,4.65570466]
[1772635502669,0.001,2068.7,2066.6,4.72124066]
[1772635502670,1.51972387,2068.1,2066.6,4.72124066]
[1772635502929,0.001,2068.7,2067.7,4.88190466]
[1772635503136,0.001,2068.7,2067.9,4.65570466]
[1772635503709,2.42376273,2069.6,2068.0,4.65570466]
[1772635504041,4.7274667,2069.5,2067.7,1.43523818]
[1772635504200,4.87695169,2069.0,2067.7,0.2262]
[1772635504395,7.02014435,2069.0,2067.7,0.2262]
[1772635504698,2.42376273,2069.6,2067.8,4.65570466]
[1772635505038,2.94345436,2068.9,2066.7,4.83841955]
[1772635505253,1.20872213,2068.3,2066.6,5.86539051]
[1772635505470,0.065536,2068.2,2066.2,1.20995063]
[1772635505771,3.50139978,2068.3,2066.3,4.65570466]
[1772635505927,1.20872213,2068.3,2066.3,4.65570466]
[1772635506258,1.20854684,2068.6,2066.7,4.65570466]
[1772635507172,7.12686502,2068.7,2066.8,1.20959938]
[1772635507482,4.83418737,2068.7,2066.9,4.65570466]
[1772635507760,3.43901647,2069.1,2067.2,4.65570466]
[1772635507761,4.83314682,2069.1,2067.2,4.65570466]
[1772635508065,4.83314682,2069.1,2067.3,4.65570466]
[1772635508364,1.20807963,2069.4,2067.3,4.65570466]
[1772635508535,2.94345436,2069.3,2067.3,4.65570466]
[1772635508855,2.29267765,2069.1,2067.3,4.65570466]
[1772635509063,7.02014435,2069.3,2067.3,4.65570466]
[1772635509362,4.83301918,2069.2,2067.4,5.86495299]
[1772635509858,11.85316353,2069.2,2067.5,1.453]
[1772635510433,4.83256193,2069.3,2067.6,4.65570466]
[1772635510763,0.32344721,2069.5,2068.2,4.65570466]
[1772635510954,1.20749613,2070.4,2068.4,4.65570466]
[1772635511138,4.8299498,2070.5,2068.5,1.20860526]
[1772635511342,4.8299498,2070.5,2068.6,6.10870466]
[1772635511552,4.82998454,2070.6,2068.7,4.65570466]
[1772635511860,4.83035788,2070.8,2068.7,4.65570466]
[1772635511861,0.001,2070.8,2069.1,4.65570466]
[1772635512063,0.001,2070.8,2069.5,4.65570466]
[1772635512367,4.82655593,2071.9,2069.9,4.65570466]
[1772635512695,4.7274667,2071.6,2069.8,4.06751288]
[1772635512866,4.7274667,2071.6,2069.8,8.72321754]
[1772635513030,4.82655593,2071.9,2069.9,4.65570466]
[1772635513233,4.82655593,2071.9,2070.0,5.86343412]
[1772635513450,4.82655593,2071.9,2070.1,4.65570466]
[1772635513650,4.82655593,2071.9,2070.3,4.65570466]
[1772635513961,0.1,2072.0,2070.3,4.65570466]
[1772635514167,1.3065819,2072.0,2070.4,1.452]
[1772635514351,1.3065819,2072.0,2070.3,4.65570466]
[1772635514837,1.3065819,2072.0,2070.4,1.452]
[1772635515234,1.3065819,2072.0,2070.5,1.452]
[1772635515649,1.3065819,2072.0,2070.6,4.65570466]
[1772635515650,0.1,2072.0,2070.6,4.65570466]
[1772635516081,1.20636046,2072.4,2070.6,4.65570466]
[1772635516237,4.82389933,2073.1,2070.8,4.65570466]
[1772635516564,4.8241051,2073.0,2070.8,4.65570466]
[1772635516763,4.8241051,2073.0,2071.0,4.65570466]
[1772635517277,1.20615622,2072.7,2071.2,1.20702974]
[1772635518065,7.67092106,2072.4,2070.7,1.451]
[1772635518261,1.20615622,2072.7,2070.4,4.65570466]
[1772635518467,1.20615622,2072.7,2070.3,1.20751113]
[1772635518468,4.62203078,2072.3,2070.3,1.20751113]
[1772635518778,7.56548514,2072.0,2070.3,1.451]
[1772635519342,1.20662194,2071.9,2070.4,1.45]
[1772635519639,1.20662194,2071.9,2069.8,1.45]
[1772635519640,4.62203078,2071.5,2069.8,1.45]
[1772635519838,4.62203078,2071.5,2069.4,1.20807963]
[1772635519839,2.94345436,2071.2,2069.4,1.20807963]
[1772635520270,4.62203078,2071.1,2069.4,1.20807963]
[1772635520570,4.62203078,2071.1,2068.9,2.65837159]
[1772635520571,4.62203078,2070.7,2068.9,2.65837159]
[1772635521076,2.94345436,2071.2,2069.0,4.4920402]
[1772635521077,4.68756678,2071.2,2069.0,4.4920402]
[1772635521572,4.62203078,2071.0,2069.2,1.2081964]
[1772635521741,4.62203078,2070.8,2068.4,4.4920402]
[1772635521942,4.62203078,2070.2,2068.4,1.20862889]
[1772635522143,4.62203078,2070.2,2068.4,1.45]
[1772635522643,4.62203078,2069.8,2068.0,1.20889748]
[1772635522846,2.94345436,2069.5,2067.9,1.20895123]
[1772635523042,4.62203078,2069.4,2067.7,4.83615122]
[1772635523243,4.62203078,2069.4,2067.4,4.4920402]
[1772635523244,4.62203078,2069.4,2067.5,1.20918984]
[1772635523443,1.20813801,2069.3,2067.5,1.20918984]
[1772635524045,1.20813801,2069.3,2067.5,5.85802005]
[1772635524371,1.20813801,2069.3,2067.6,1.449]
[1772635524573,7.5802692,2068.8,2067.0,1.449]
[1772635524878,4.63681484,2068.8,2067.0,1.449]
[1772635525063,4.63681484,2068.8,2067.1,1.449]
[1772635525374,1.20848842,2068.7,2067.3,1.20930682]
[1772635525563,1.20848842,2068.7,2066.6,4.83881154]
[1772635525564,4.63681484,2068.6,2066.6,4.83881154]
[1772635525763,4.83395369,2069.0,2066.6,4.83881154]
[1772635525764,1.2092782,2069.1,2066.7,4.64883021]
[1772635525966,1.2092782,2069.1,2067.1,4.64883021]
[1772635525967,1.20928684,2069.1,2067.1,4.64883021]
[1772635526476,1.20928684,2069.1,2067.3,4.64883021]
[1772635526853,0.001,2069.1,2067.5,4.64883021]
[1772635527054,1.20784616,2069.8,2067.7,4.64883021]
[1772635527375,4.63681484,2070.2,2067.4,0.21502099]
[1772635527376,4.83068864,2070.1,2068.1,4.64883021]
[1772635527709,4.83138467,2070.2,2068.1,4.64883021]
[1772635527850,1.20755446,2070.3,2068.3,4.64883021]
[1772635528046,6.08563276,2070.8,2068.3,4.64883021]
[1772635528047,4.8283857,2071.1,2068.9,4.64883021]
[1772635528272,4.8283857,2071.1,2069.1,4.64883021]
[1772635528458,1.20697146,2071.3,2069.3,4.64883021]
[1772635528658,2.09975321,2070.7,2068.7,4.64883021]
[1772635528860,2.09975321,2070.7,2068.9,4.64883021]
[1772635529069,4.63681484,2071.0,2068.9,4.64883021]
[1772635529349,1.20720459,2070.9,2069.0,1.20831319]
[1772635529552,1.20720459,2070.9,2069.1,4.64883021]
[1772635529792,1.20720459,2070.9,2069.2,1.448]
[1772635530079,1.20720459,2070.9,2069.3,4.64883021]
[1772635530579,1.20720459,2070.9,2069.0,1.20831319]
[1772635530580,3.3069578,2070.9,2069.1,1.447]
[1772635531254,2.09975321,2070.5,2069.1,1.447]
[1772635531450,1.20749613,2070.4,2068.8,1.2084009]
[1772635531652,1.20749613,2070.4,2068.3,1.20872213]
[1772635531653,2.09975321,2070.1,2068.3,1.20872213]
[1772635531883,1.20749613,2070.4,2068.0,1.447]
[1772635531884,2.09975321,2069.7,2068.0,1.447]
[1772635532254,2.6839443,2069.9,2067.0,9.48657182]
[1772635532255,4.63681484,2069.2,2067.0,9.48657182]
[1772635532584,6.73656805,2068.5,2067.1,1.446]
[1772635532769,2.09975321,2068.1,2066.6,6.28484855]
[1772635533079,2.09975321,2068.1,2066.5,1.20973184]
[1772635533283,0.14948499,2069.0,2066.5,1.20973184]
[1772635533284,2.09975321,2068.8,2066.5,5.85856205]
[1772635533452,5.84530326,2068.7,2066.7,1.2096579]
[1772635533652,4.63681484,2068.6,2066.7,1.2096579]
[1772635533972,2.09975321,2068.4,2066.6,7.30450316]
[1772635534179,6.73656805,2068.0,2066.3,1.20989207]
[1772635534775,6.73656805,2068.0,2066.3,2.65589207]
[1772635534975,6.73656805,2068.5,2066.3,2.65589207]
[1772635535216,2.09975321,2068.1,2066.4,1.446]
[1772635535387,4.63681484,2068.4,2066.4,1.446]
[1772635535567,1.20872213,2068.3,2066.5,1.20977498]
[1772635535893,1.20872213,2068.3,2066.1,4.83956831]
[1772635535894,5.84553697,2068.3,2066.1,4.83984854]
[1772635536092,4.63681484,2068.0,2066.2,1.445]
[1772635536387,4.63681484,2068.0,2066.1,1.21000919]
[1772635536694,2.09975321,2067.9,2066.1,1.21000919]
[1772635536863,6.73656805,2067.9,2066.2,1.445]
[1772635537275,4.63681484,2067.8,2066.1,1.21000919]
[1772635537667,4.63681484,2067.8,2065.8,1.445]
[1772635537668,2.09975321,2067.5,2065.8,1.445]
[1772635538461,5.84588772,2067.7,2065.8,6.09383021]
[1772635538790,5.84588772,2067.7,2065.9,4.64883021]
[1772635539196,5.84588772,2067.7,2066.6,0.0011]
[1772635539595,5.84588772,2067.7,2065.7,1.444]
[1772635539596,4.63681484,2067.4,2065.7,1.444]
[1772635539796,4.63681484,2067.4,2066.4,0.0011]
[1772635540209,2.09975321,2067.1,2066.4,0.0011]
[1772635540520,4.63681484,2067.4,2066.4,0.0011]
[1772635540720,4.78369751,2068.0,2066.4,0.0011]
[1772635540721,4.83608329,2067.8,2066.4,0.0011]
[1772635541012,1.20901441,2067.9,2066.4,0.0011]
[1772635541013,4.83605764,2067.9,2066.4,0.0011]
[1772635541218,1.20895594,2067.9,2066.4,0.0011]
[1772635541509,4.83582378,2068.3,2066.4,4.64993021]
[1772635541510,9.47178705,2068.3,2066.4,4.64993021]
[1772635541665,2.09975321,2068.0,2066.5,1.20977498]
[1772635542098,4.63681484,2068.2,2066.5,1.20977498]
[1772635542505,4.83497221,2068.3,2066.6,4.64883021]
[1772635543126,4.83469945,2068.6,2066.6,4.64883021]
[1772635543127,1.20854684,2068.6,2066.6,4.64883021]
[1772635543279,1.20825479,2069.1,2066.8,4.64883021]
[1772635543481,3.308008,2069.1,2066.8,4.64883021]
[1772635543781,3.308008,2069.1,2067.0,4.64883021]
[1772635544077,3.308008,2069.1,2067.1,1.442]
[1772635544277,7.94482284,2069.1,2067.2,4.64883021]
[1772635544484,7.94482284,2069.1,2067.3,1.442]
[1772635544892,6.73656805,2068.7,2067.1,1.442]
[1772635545087,7.94482284,2069.1,2067.1,1.442]
[1772635545289,4.63681484,2069.0,2066.9,5.85837106]
[1772635545486,4.63681484,2068.6,2067.0,1.442]
[1772635545683,1.20860526,2068.5,2067.1,1.20942383]
[1772635546303,1.20843,2068.8,2067.1,1.20942383]
[1772635546505,1.20843,2068.8,2067.2,4.64883021]
[1772635547783,4.8332528,2069.0,2067.3,1.20930682]
[1772635548020,6.73656805,2068.9,2067.3,1.20930682]
[1772635548220,6.73656805,2068.9,2067.3,2.64930682]
[1772635548423,6.73656805,2068.9,2066.9,4.83769532]
[1772635548424,4.53576242,2068.8,2066.9,1.20954085]
[1772635548586,4.53576242,2068.4,2066.9,1.20954085]
[1772635549003,4.53576242,2068.4,2066.4,0.0011]
[1772635549004,2.09975321,2068.1,2066.5,1.20971644]
[1772635549325,4.53576242,2068.0,2066.5,1.20971644]
[1772635549529,4.53576242,2067.6,2066.4,0.0011]
[1772635549948,1.20918984,2067.5,2066.4,0.0011]
[1772635550731,1.20901441,2067.8,2066.4,0.0011]
[1772635551424,4.53576242,2067.7,2066.4,0.0011]
[1772635551621,4.53576242,2067.6,2066.4,0.0011]
[1772635551825,1.20918984,2067.5,2066.4,0.0011]
[1772635552007,2.09975321,2067.3,2066.4,0.0011]
[1772635552414,1.20918984,2067.5,2066.4,0.0011]
[1772635553531,1.20918984,2067.5,2066.6,0.0011]